Workbook

Sheet Отчет о продажах товаров
B1: Отчет о продажах товаров
B20: Товары

Sheet Журнал данных
B1: Журнал данных прайс-листа и продаж по товарам
B3: Код товара | C3: Наименование товара | D3: Цена на дату | E3: Розн. цена за ед. | F3: Опт. цена за ед.* | G3: Продано в розницу | H3: Продано оптом | I3: Всего продаж (шт.) | J3: Всего продаж ($)
B4: 5 | C4: =IFERROR(IF(таблПродажи[[#This Row],[Код товара]]<>"",VLOOKUP(таблПродажи[Код товара],таблПродукты[[Код товара]:[Наименование]],2,FALSE),""),"Неизвестный код продукта") -> Шорты | D4: 2012-01-01 | E4: 20 | F4: 20р. | G4: 629 | H4: 1,254 | I4: =таблПродажи[[#This Row],[Продано в розницу]]+таблПродажи[[#This Row],[Продано оптом]] -> 1,883 | J4: =таблПродажи[[#This Row],[Продано в розницу]]*таблПродажи[[#This Row],[Розн. цена за ед.]]+таблПродажи[[#This Row],[Продано оптом]]*таблПродажи[[#This Row],[Опт. цена за ед.*]] -> 37,660р.
B5: 1 | C5: =IFERROR(IF(таблПродажи[[#This Row],[Код товара]]<>"",VLOOKUP(таблПродажи[Код товара],таблПродукты[[Код товара]:[Наименование]],2,FALSE),""),"Неизвестный код продукта") -> Рубашки | D5: 2012-01-01 | E5: 88 | F5: 54р. | G5: 734 | H5: 1,427 | I5: =таблПродажи[[#This Row],[Продано в розницу]]+таблПродажи[[#This Row],[Продано оптом]] -> 2,161 | J5: =таблПродажи[[#This Row],[Продано в розницу]]*таблПродажи[[#This Row],[Розн. цена за ед.]]+таблПродажи[[#This Row],[Продано оптом]]*таблПродажи[[#This Row],[Опт. цена за ед.*]] -> 141,650р.
B6: 2 | C6: =IFERROR(IF(таблПродажи[[#This Row],[Код товара]]<>"",VLOOKUP(таблПродажи[Код товара],таблПродукты[[Код товара]:[Наименование]],2,FALSE),""),"Неизвестный код продукта") -> Сандалии | D6: 2012-01-01 | E6: 70 | F6: 44р. | G6: 744 | H6: 1,043 | I6: =таблПродажи[[#This Row],[Продано в розницу]]+таблПродажи[[#This Row],[Продано оптом]] -> 1,787 | J6: =таблПродажи[[#This Row],[Продано в розницу]]*таблПродажи[[#This Row],[Розн. цена за ед.]]+таблПродажи[[#This Row],[Продано оптом]]*таблПродажи[[#This Row],[Опт. цена за ед.*]] -> 97,972р.
B7: 3 | C7: =IFERROR(IF(таблПродажи[[#This Row],[Код товара]]<>"",VLOOKUP(таблПродажи[Код товара],таблПродукты[[Код товара]:[Наименование]],2,FALSE),""),"Неизвестный код продукта") -> Зонты | D7: 2012-01-01 | E7: 63 | F7: 44р. | G7: 681 | H7: 1,523 | I7: =таблПродажи[[#This Row],[Продано в розницу]]+таблПродажи[[#This Row],[Продано оптом]] -> 2,204 | J7: =таблПродажи[[#This Row],[Продано в розницу]]*таблПродажи[[#This Row],[Розн. цена за ед.]]+таблПродажи[[#This Row],[Продано оптом]]*таблПродажи[[#This Row],[Опт. цена за ед.*]] -> 109,915р.
B8: 4 | C8: =IFERROR(IF(таблПродажи[[#This Row],[Код товара]]<>"",VLOOKUP(таблПродажи[Код товара],таблПродукты[[Код товара]:[Наименование]],2,FALSE),""),"Неизвестный код продукта") -> Бутылки для воды | D8: 2012-01-01 | E8: 35 | F8: 27р. | G8: 602 | H8: 1,822 | I8: =таблПродажи[[#This Row],[Продано в розницу]]+таблПродажи[[#This Row],[Продано оптом]] -> 2,424 | J8: =таблПродажи[[#This Row],[Продано в розницу]]*таблПродажи[[#This Row],[Розн. цена за ед.]]+таблПродажи[[#This Row],[Продано оптом]]*таблПродажи[[#This Row],[Опт. цена за ед.*]] -> 70,264р.
B9: 1 | C9: =IFERROR(IF(таблПродажи[[#This Row],[Код товара]]<>"",VLOOKUP(таблПродажи[Код товара],таблПродукты[[Код товара]:[Наименование]],2,FALSE),""),"Неизвестный код продукта") -> Рубашки | D9: 2012-02-01 | E9: 55 | F9: 44р. | G9: 678 | H9: 1,515 | I9: =таблПродажи[[#This Row],[Продано в розницу]]+таблПродажи[[#This Row],[Продано оптом]] -> 2,193 | J9: =таблПродажи[[#This Row],[Продано в розницу]]*таблПродажи[[#This Row],[Розн. цена за ед.]]+таблПродажи[[#This Row],[Продано оптом]]*таблПродажи[[#This Row],[Опт. цена за ед.*]] -> 103,950р.
B10: 2 | C10: =IFERROR(IF(таблПродажи[[#This Row],[Код товара]]<>"",VLOOKUP(таблПродажи[Код товара],таблПродукты[[Код товара]:[Наименование]],2,FALSE),""),"Неизвестный код продукта") -> Сандалии | D10: 2012-02-01 | E10: 83 | F10: 54р. | G10: 753 | H10: 1,005 | I10: =таблПродажи[[#This Row],[Продано в розницу]]+таблПродажи[[#This Row],[Продано оптом]] -> 1,758 | J10: =таблПродажи[[#This Row],[Продано в розницу]]*таблПродажи[[#This Row],[Розн. цена за ед.]]+таблПродажи[[#This Row],[Продано оптом]]*таблПродажи[[#This Row],[Опт. цена за ед.*]] -> 116,769р.
B11: 3 | C11: =IFERROR(IF(таблПродажи[[#This Row],[Код товара]]<>"",VLOOKUP(таблПродажи[Код товара],таблПродукты[[Код товара]:[Наименование]],2,FALSE),""),"Неизвестный код продукта") -> Зонты | D11: 2012-02-01 | E11: 34 | F11: 34р. | G11: 986 | H11: 1,069 | I11: =таблПродажи[[#This Row],[Продано в розницу]]+таблПродажи[[#This Row],[Продано оптом]] -> 2,055 | J11: =таблПродажи[[#This Row],[Продано в розницу]]*таблПродажи[[#This Row],[Розн. цена за ед.]]+таблПродажи[[#This Row],[Продано оптом]]*таблПродажи[[#This Row],[Опт. цена за ед.*]] -> 69,870р.
B12: 4 | C12: =IFERROR(IF(таблПродажи[[#This Row],[Код товара]]<>"",VLOOKUP(таблПродажи[Код товара],таблПродукты[[Код товара]:[Наименование]],2,FALSE),""),"Неизвестный код продукта") -> Бутылки для воды | D12: 2012-02-01 | E12: 35 | F12: 25р. | G12: 848 | H12: 1,211 | I12: =таблПродажи[[#This Row],[Продано в розницу]]+таблПродажи[[#This Row],[Продано оптом]] -> 2,059 | J12: =таблПродажи[[#This Row],[Продано в розницу]]*таблПродажи[[#This Row],[Розн. цена за ед.]]+таблПродажи[[#This Row],[Продано оптом]]*таблПродажи[[#This Row],[Опт. цена за ед.*]] -> 59,955р.
B13: 5 | C13: =IFERROR(IF(таблПродажи[[#This Row],[Код товара]]<>"",VLOOKUP(таблПродажи[Код товара],таблПродукты[[Код товара]:[Наименование]],2,FALSE),""),"Неизвестный код продукта") -> Шорты | D13: 2012-02-01 | E13: 41 | F13: 38р. | G13: 980 | H13: 1,330 | I13: =таблПродажи[[#This Row],[Продано в розницу]]+таблПродажи[[#This Row],[Продано оптом]] -> 2,310 | J13: =таблПродажи[[#This Row],[Продано в розницу]]*таблПродажи[[#This Row],[Розн. цена за ед.]]+таблПродажи[[#This Row],[Продано оптом]]*таблПродажи[[#This Row],[Опт. цена за ед.*]] -> 90,720р.
B14: 1 | C14: =IFERROR(IF(таблПродажи[[#This Row],[Код товара]]<>"",VLOOKUP(таблПродажи[Код товара],таблПродукты[[Код товара]:[Наименование]],2,FALSE),""),"Неизвестный код продукта") -> Рубашки | D14: 2012-02-29 | E14: 27 | F14: 18р. | G14: 533 | H14: 1,936 | I14: =таблПродажи[[#This Row],[Продано в розницу]]+таблПродажи[[#This Row],[Продано оптом]] -> 2,469 | J14: =таблПродажи[[#This Row],[Продано в розницу]]*таблПродажи[[#This Row],[Розн. цена за ед.]]+таблПродажи[[#This Row],[Продано оптом]]*таблПродажи[[#This Row],[Опт. цена за ед.*]] -> 49,239р.
B15: 2 | C15: =IFERROR(IF(таблПродажи[[#This Row],[Код товара]]<>"",VLOOKUP(таблПродажи[Код товара],таблПродукты[[Код товара]:[Наименование]],2,FALSE),""),"Неизвестный код продукта") -> Сандалии | D15: 2012-02-29 | E15: 38 | F15: 28р. | G15: 952 | H15: 1,512 | I15: =таблПродажи[[#This Row],[Продано в розницу]]+таблПродажи[[#This Row],[Продано оптом]] -> 2,464 | J15: =таблПродажи[[#This Row],[Продано в розницу]]*таблПродажи[[#This Row],[Розн. цена за ед.]]+таблПродажи[[#This Row],[Продано оптом]]*таблПродажи[[#This Row],[Опт. цена за ед.*]] -> 78,512р.
B16: 3 | C16: =IFERROR(IF(таблПродажи[[#This Row],[Код товара]]<>"",VLOOKUP(таблПродажи[Код товара],таблПродукты[[Код товара]:[Наименование]],2,FALSE),""),"Неизвестный код продукта") -> Зонты | D16: 2012-02-29 | E16: 92 | F16: 92р. | G16: 956 | H16: 1,266 | I16: =таблПродажи[[#This Row],[Продано в розницу]]+таблПродажи[[#This Row],[Продано оптом]] -> 2,222 | J16: =таблПродажи[[#This Row],[Продано в розницу]]*таблПродажи[[#This Row],[Розн. цена за ед.]]+таблПродажи[[#This Row],[Продано оптом]]*таблПродажи[[#This Row],[Опт. цена за ед.*]] -> 204,424р.
B17: 4 | C17: =IFERROR(IF(таблПродажи[[#This Row],[Код товара]]<>"",VLOOKUP(таблПродажи[Код товара],таблПродукты[[Код товара]:[Наименование]],2,FALSE),""),"Неизвестный код продукта") -> Бутылки для воды | D17: 2012-02-29 | E17: 43 | F17: 36р. | G17: 952 | H17: 1,390 | I17: =таблПродажи[[#This Row],[Продано в розницу]]+таблПродажи[[#This Row],[Продано оптом]] -> 2,342 | J17: =таблПродажи[[#This Row],[Продано в розницу]]*таблПродажи[[#This Row],[Розн. цена за ед.]]+таблПродажи[[#This Row],[Продано оптом]]*таблПродажи[[#This Row],[Опт. цена за ед.*]] -> 90,976р.
B18: 5 | C18: =IFERROR(IF(таблПродажи[[#This Row],[Код товара]]<>"",VLOOKUP(таблПродажи[Код товара],таблПродукты[[Код товара]:[Наименование]],2,FALSE),""),"Неизвестный код продукта") -> Шорты | D18: 2012-02-29 | E18: 98 | F18: 73р. | G18: 530 | H18: 1,452 | I18: =таблПродажи[[#This Row],[Продано в розницу]]+таблПродажи[[#This Row],[Продано оптом]] -> 1,982 | J18: =таблПродажи[[#This Row],[Продано в розницу]]*таблПродажи[[#This Row],[Розн. цена за ед.]]+таблПродажи[[#This Row],[Продано оптом]]*таблПродажи[[#This Row],[Опт. цена за ед.*]] -> 157,936р.
B19: 1 | C19: =IFERROR(IF(таблПродажи[[#This Row],[Код товара]]<>"",VLOOKUP(таблПродажи[Код товара],таблПродукты[[Код товара]:[Наименование]],2,FALSE),""),"Неизвестный код продукта") -> Рубашки | D19: 2012-03-31 | E19: 38 | F19: 28р. | G19: 973 | H19: 1,415 | I19: =таблПродажи[[#This Row],[Продано в розницу]]+таблПродажи[[#This Row],[Продано оптом]] -> 2,388 | J19: =таблПродажи[[#This Row],[Продано в розницу]]*таблПродажи[[#This Row],[Розн. цена за ед.]]+таблПродажи[[#This Row],[Продано оптом]]*таблПродажи[[#This Row],[Опт. цена за ед.*]] -> 76,594р.
B20: 2 | C20: =IFERROR(IF(таблПродажи[[#This Row],[Код товара]]<>"",VLOOKUP(таблПродажи[Код товара],таблПродукты[[Код товара]:[Наименование]],2,FALSE),""),"Неизвестный код продукта") -> Сандалии | D20: 2012-03-31 | E20: 50 | F20: 36р. | G20: 672 | H20: 1,105 | I20: =таблПродажи[[#This Row],[Продано в розницу]]+таблПродажи[[#This Row],[Продано оптом]] -> 1,777 | J20: =таблПродажи[[#This Row],[Продано в розницу]]*таблПродажи[[#This Row],[Розн. цена за ед.]]+таблПродажи[[#This Row],[Продано оптом]]*таблПродажи[[#This Row],[Опт. цена за ед.*]] -> 73,380р.
B21: 3 | C21: =IFERROR(IF(таблПродажи[[#This Row],[Код товара]]<>"",VLOOKUP(таблПродажи[Код товара],таблПродукты[[Код товара]:[Наименование]],2,FALSE),""),"Неизвестный код продукта") -> Зонты | D21: 2012-03-31 | E21: 24 | F21: 23р. | G21: 769 | H21: 1,629 | I21: =таблПродажи[[#This Row],[Продано в розницу]]+таблПродажи[[#This Row],[Продано оптом]] -> 2,398 | J21: =таблПродажи[[#This Row],[Продано в розницу]]*таблПродажи[[#This Row],[Розн. цена за ед.]]+таблПродажи[[#This Row],[Продано оптом]]*таблПродажи[[#This Row],[Опт. цена за ед.*]] -> 55,923р.
B22: 4 | C22: =IFERROR(IF(таблПродажи[[#This Row],[Код товара]]<>"",VLOOKUP(таблПродажи[Код товара],таблПродукты[[Код товара]:[Наименование]],2,FALSE),""),"Неизвестный код продукта") -> Бутылки для воды | D22: 2012-03-31 | E22: 72 | F22: 57р. | G22: 985 | H22: 1,848 | I22: =таблПродажи[[#This Row],[Продано в розницу]]+таблПродажи[[#This Row],[Продано оптом]] -> 2,833 | J22: =таблПродажи[[#This Row],[Продано в розницу]]*таблПродажи[[#This Row],[Розн. цена за ед.]]+таблПродажи[[#This Row],[Продано оптом]]*таблПродажи[[#This Row],[Опт. цена за ед.*]] -> 176,256р.
B23: 5 | C23: =IFERROR(IF(таблПродажи[[#This Row],[Код товара]]<>"",VLOOKUP(таблПродажи[Код товара],таблПродукты[[Код товара]:[Наименование]],2,FALSE),""),"Неизвестный код продукта") -> Шорты | D23: 2012-03-31 | E23: 85 | F23: 43р. | G23: 721 | H23: 1,426 | I23: =таблПродажи[[#This Row],[Продано в розницу]]+таблПродажи[[#This Row],[Продано оптом]] -> 2,147 | J23: =таблПродажи[[#This Row],[Продано в розницу]]*таблПродажи[[#This Row],[Розн. цена за ед.]]+таблПродажи[[#This Row],[Продано оптом]]*таблПродажи[[#This Row],[Опт. цена за ед.*]] -> 122,603р.
B24: 1 | C24: =IFERROR(IF(таблПродажи[[#This Row],[Код товара]]<>"",VLOOKUP(таблПродажи[Код товара],таблПродукты[[Код товара]:[Наименование]],2,FALSE),""),"Неизвестный код продукта") -> Рубашки | D24: 2012-04-30 | E24: 91 | F24: 65р. | G24: 603 | H24: 1,226 | I24: =таблПродажи[[#This Row],[Продано в розницу]]+таблПродажи[[#This Row],[Продано оптом]] -> 1,829 | J24: =таблПродажи[[#This Row],[Продано в розницу]]*таблПродажи[[#This Row],[Розн. цена за ед.]]+таблПродажи[[#This Row],[Продано оптом]]*таблПродажи[[#This Row],[Опт. цена за ед.*]] -> 134,563р.
B25: 2 | C25: =IFERROR(IF(таблПродажи[[#This Row],[Код товара]]<>"",VLOOKUP(таблПродажи[Код товара],таблПродукты[[Код товара]:[Наименование]],2,FALSE),""),"Неизвестный код продукта") -> Сандалии | D25: 2012-04-30 | E25: 91 | F25: 55р. | G25: 892 | H25: 1,823 | I25: =таблПродажи[[#This Row],[Продано в розницу]]+таблПродажи[[#This Row],[Продано оптом]] -> 2,715 | J25: =таблПродажи[[#This Row],[Продано в розницу]]*таблПродажи[[#This Row],[Розн. цена за ед.]]+таблПродажи[[#This Row],[Продано оптом]]*таблПродажи[[#This Row],[Опт. цена за ед.*]] -> 181,437р.
B26: 3 | C26: =IFERROR(IF(таблПродажи[[#This Row],[Код товара]]<>"",VLOOKUP(таблПродажи[Код товара],таблПродукты[[Код товара]:[Наименование]],2,FALSE),""),"Неизвестный код продукта") -> Зонты | D26: 2012-04-30 | E26: 42 | F26: 42р. | G26: 611 | H26: 1,181 | I26: =таблПродажи[[#This Row],[Продано в розницу]]+таблПродажи[[#This Row],[Продано оптом]] -> 1,792 | J26: =таблПродажи[[#This Row],[Продано в розницу]]*таблПродажи[[#This Row],[Розн. цена за ед.]]+таблПродажи[[#This Row],[Продано оптом]]*таблПродажи[[#This Row],[Опт. цена за ед.*]] -> 75,264р.
B27: 4 | C27: =IFERROR(IF(таблПродажи[[#This Row],[Код товара]]<>"",VLOOKUP(таблПродажи[Код товара],таблПродукты[[Код товара]:[Наименование]],2,FALSE),""),"Неизвестный код продукта") -> Бутылки для воды | D27: 2012-04-30 | E27: 85 | F27: 43р. | G27: 530 | H27: 1,039 | I27: =таблПродажи[[#This Row],[Продано в розницу]]+таблПродажи[[#This Row],[Продано оптом]] -> 1,569 | J27: =таблПродажи[[#This Row],[Продано в розницу]]*таблПродажи[[#This Row],[Розн. цена за ед.]]+таблПродажи[[#This Row],[Продано оптом]]*таблПродажи[[#This Row],[Опт. цена за ед.*]] -> 89,727р.
B28: 5 | C28: =IFERROR(IF(таблПродажи[[#This Row],[Код товара]]<>"",VLOOKUP(таблПродажи[Код товара],таблПродукты[[Код товара]:[Наименование]],2,FALSE),""),"Неизвестный код продукта") -> Шорты | D28: 2012-04-30 | E28: 82 | F28: 71р. | G28: 716 | H28: 1,249 | I28: =таблПродажи[[#This Row],[Продано в розницу]]+таблПродажи[[#This Row],[Продано оптом]] -> 1,965 | J28: =таблПродажи[[#This Row],[Продано в розницу]]*таблПродажи[[#This Row],[Розн. цена за ед.]]+таблПродажи[[#This Row],[Продано оптом]]*таблПродажи[[#This Row],[Опт. цена за ед.*]] -> 147,391р.
B29: 1 | C29: =IFERROR(IF(таблПродажи[[#This Row],[Код товара]]<>"",VLOOKUP(таблПродажи[Код товара],таблПродукты[[Код товара]:[Наименование]],2,FALSE),""),"Неизвестный код продукта") -> Рубашки | D29: 2012-05-14 | E29: 34 | F29: 31р. | G29: 850 | H29: 1,548 | I29: =таблПродажи[[#This Row],[Продано в розницу]]+таблПродажи[[#This Row],[Продано оптом]] -> 2,398 | J29: =таблПродажи[[#This Row],[Продано в розницу]]*таблПродажи[[#This Row],[Розн. цена за ед.]]+таблПродажи[[#This Row],[Продано оптом]]*таблПродажи[[#This Row],[Опт. цена за ед.*]] -> 76,888р.
B30: 2 | C30: =IFERROR(IF(таблПродажи[[#This Row],[Код товара]]<>"",VLOOKUP(таблПродажи[Код товара],таблПродукты[[Код товара]:[Наименование]],2,FALSE),""),"Неизвестный код продукта") -> Сандалии | D30: 2012-05-14 | E30: 64 | F30: 40р. | G30: 876 | H30: 1,663 | I30: =таблПродажи[[#This Row],[Продано в розницу]]+таблПродажи[[#This Row],[Продано оптом]] -> 2,539 | J30: =таблПродажи[[#This Row],[Продано в розницу]]*таблПродажи[[#This Row],[Розн. цена за ед.]]+таблПродажи[[#This Row],[Продано оптом]]*таблПродажи[[#This Row],[Опт. цена за ед.*]] -> 122,584р.
B31: 3 | C31: =IFERROR(IF(таблПродажи[[#This Row],[Код товара]]<>"",VLOOKUP(таблПродажи[Код товара],таблПродукты[[Код товара]:[Наименование]],2,FALSE),""),"Неизвестный код продукта") -> Зонты | D31: 2012-05-14 | E31: 33 | F31: 30р. | G31: 881 | H31: 1,149 | I31: =таблПродажи[[#This Row],[Продано в розницу]]+таблПродажи[[#This Row],[Продано оптом]] -> 2,030 | J31: =таблПродажи[[#This Row],[Продано в розницу]]*таблПродажи[[#This Row],[Розн. цена за ед.]]+таблПродажи[[#This Row],[Продано оптом]]*таблПродажи[[#This Row],[Опт. цена за ед.*]] -> 63,543р.
B32: 4 | C32: =IFERROR(IF(таблПродажи[[#This Row],[Код товара]]<>"",VLOOKUP(таблПродажи[Код товара],таблПродукты[[Код товара]:[Наименование]],2,FALSE),""),"Неизвестный код продукта") -> Бутылки для воды | D32: 2012-05-14 | E32: 29 | F32: 27р. | G32: 802 | H32: 1,548 | I32: =таблПродажи[[#This Row],[Продано в розницу]]+таблПродажи[[#This Row],[Продано оптом]] -> 2,350 | J32: =таблПродажи[[#This Row],[Продано в розницу]]*таблПродажи[[#This Row],[Розн. цена за ед.]]+таблПродажи[[#This Row],[Продано оптом]]*таблПродажи[[#This Row],[Опт. цена за ед.*]] -> 65,054р.
B33: 5 | C33: =IFERROR(IF(таблПродажи[[#This Row],[Код товара]]<>"",VLOOKUP(таблПродажи[Код товара],таблПродукты[[Код товара]:[Наименование]],2,FALSE),""),"Неизвестный код продукта") -> Шорты | D33: 2013-12-11 | E33: 24 | F33: 15р. | G33: 824 | H33: 1,994 | I33: =таблПродажи[[#This Row],[Продано в розницу]]+таблПродажи[[#This Row],[Продано оптом]] -> 2,818 | J33: =таблПродажи[[#This Row],[Продано в розницу]]*таблПродажи[[#This Row],[Розн. цена за ед.]]+таблПродажи[[#This Row],[Продано оптом]]*таблПродажи[[#This Row],[Опт. цена за ед.*]] -> 49,686р.

Sheet Прайс-лист
B1: Прайс-лист товаров
B3: Мир приключений
B4: 23456, ул. Бородинская, д. 23
B5: г. Москва
B6: Телефон: (495) 555-0150
B7: Факс: (495) 555-0152
B8: www.adventure-works.com | F8: Последнее обновление: 15.08.2013 г.
B10: Код товара | C10: Наименование | D10: Описание | E10: Розн. цена за ед. | F10: Опт. цена за ед.*
B11: 1 | C11: Рубашки | D11: Выглядите классно все лето в наших рубашках из чистого хлопка с предварительной усадкой. | E11: 22р. | F11: 15.00р.
B12: 2 | C12: Сандалии | D12: В наших прочных сандалиях с резиновой подошвой вы сможете с комфортом ходить по самому горячему песку. | E12: 10р. | F12: 6.00р.
B13: 3 | C13: Зонты | D13: Спрячьтесь от солнца под нашим увеличенным пляжным зонтом, который на 96 % защищает от вредного ультрафиолетового излучения. | E13: 30р. | F13: 20.00р.
B14: 4 | C14: Бутылки для воды | D14: Утолите жажду водой идеальной температуры из нашей защищенной от нагревания бутылки для воды. | E14: 7р. | F14: 5.00р.
B15: 5 | C15: Шорты | D15: В наших быстросохнущих шортах вы сможете сразу сесть в машину, выйдя из моря. | E15: 15р. | F15: 8.00р.
F17: Чтобы узнать о товарах, которых нет в списке, позвоните нам.
F18: *Оптовые цены применяются при покупке 12 и более единиц.

Sheet Свод. таблица стандартных цен (hidden)
B1: Сводная таблица стандартных цен
B2: Этот лист должен оставаться скрытым. Любые изменения в указанной ниже сводной таблице приведут к неправильным данным в отчете о продажах товара.
B3: Выбранный товар: | C3: =IF(LEN(B5),B5,"None") -> Сандалии
B4: Наименование товара | C4: Розн. цена за ед. | D4: Сумма по полю Всего продаж (шт.)
B5: Сандалии | C5: 38р. | D5: 2464
C6: 50р. | D6: 1777
C7: 64р. | D7: 2539
C8: 70р. | D8: 1787
C9: 83р. | D9: 1758
C10: 91р. | D10: 2715

Sheet Свод. таблица тенденций продаж (hidden)
B1: Сводная таблица тенденций продаж
B2: Этот лист должен оставаться скрытым. Любые изменения в указанной ниже сводной таблице приведут к неправильным данным в отчете о продажах товара.
B3: Сумма по полю Всего продаж (шт.) | C3: Наименование товара
B4: Цена на дату | C4: Сандалии
B5: янв | C5: 1787
B6: фев | C6: 4222
B7: мар | C7: 1777
B8: апр | C8: 2715
B9: май | C9: 2539
